Cogmind - Beta 13 @@@ ROGUE MODE // 2024.04.28 @ 17:00:57 Player: SlyFyer Result: Destroyed by as-68840 with Assembled Rifle Performance ------------- Evolutions (0) 0 Regions Visited (2) 400 Robots Destroyed (18) 90 Value Destroyed (320) 320 Prototype IDs (0) 0 Alien Tech Used (0) 0 Bonus (0) 0 TOTAL SCORE: 810 Bonus ------- None Cogmind --------- Core Integrity 0/250 Matter 271/300 Energy 98/100 System Corruption 0% Temperature Cool (0) Movement Core (50) Location -10/Mines Parts ------- > --- POWER (1) -------- (None) > --- PROPULSION (2) --- (None) > --- UTILITY (2) ------ (None) > --- WEAPON (2) ------- (None) > --- INVENTORY (5) ---- Hacking Suite Beamcaster Mini Grenade Launcher Datajack Mining Laser Peak State ------------ > --- POWER ------------ Improved Ion Engine > --- PROPULSION ------- Wheel Wheel > --- UTILITY ---------- Medium Storage Unit Core Shielding > --- WEAPON ----------- EM Pulse Gun Mini Grenade Launcher > --- INVENTORY -------- Light Ion Engine Improved Ion Engine Compact Wheel Compact Wheel Heat Sink High-capacity Matter Pod Structural Scanner Improved Targeting Computer Tractor Beam [Rating: 10] Favorites ----------- Power Improved Ion Engine Engine Improved Ion Engine Propulsion Wheel Wheel Wheel Utility Core Shielding Storage Medium Storage Unit Protection Core Shielding Weapon EM Pulse Gun Energy Gun EM Pulse Gun Ballistic Gun Light Assault Rifle Launcher Mini Grenade Launcher Special Weapon Mining Laser Build | -11 -10 -10 ------- Run | Yrd Mat Min Slots Evolved . | . . . Power . | . . . Propulsion . | . . . Utility . | . . . Weapon . | . . . Parts Attached 25 | 6 17 2 Power 5 | 1 4 . Engine 5 | 1 4 . Core . | . . . Reactor . | . . . Propulsion 6 | 2 3 1 Treads . | . . . Leg . | . . . Wheel 6 | 2 3 1 Hover . | . . . Flight . | . . . Utility 4 | 1 3 . Device . | . . . Storage 3 | 1 2 . Processor . | . . . Hackware . | . . . Protection 1 | . 1 . Artifact . | . . . Weapon 10 | 2 7 1 Energy Gun 3 | 2 1 . Energy Cannon . | . . . Ballistic Gun 4 | . 3 1 Ballistic Cannon . | . . . Launcher 2 | . 2 . Special Weapon 1 | . 1 . Impact Weapon . | . . . Slashing Weapon . | . . . Piercing Weapon . | . . . Special Melee Weapon . | . . . Unidentified Prototypes . | . . . Parts Lost 7 | . 1 6 Power 1 | . . 1 Propulsion 3 | . . 3 Utility . | . . . Weapon 3 | . 1 2 Highest Loss Streak 3 | . 1 3 To Critical Strikes . | . . . Average Slot Usage (%) 89 | . 94 76 Engine 12 | . 13 9 Wheel 26 | . 28 20 Storage 13 | . 14 12 Protection 11 | . 11 11 Energy Gun 9 | . 13 . Ballistic Gun 10 | . 5 22 Launcher 3 | . 5 . Naked Turns 41 | . . 41 Heaviest Build 31 | 11 30 31 Greatest Support 32 | 20 32 32 Greatest Overweight (x) 1 | . 1 1 Average Overweight (x) . | . . . Largest Inventory Capacity 15 | 8 15 15 Average Capacity 11 | 6 10 13 Most Carried 15 | 5 11 15 Average Carried 8 | 2 7 12 Final Capacity 15 | 8 15 5 Final Carried 11 | 1 11 5 Class Distribution -------------------- 100% | Mutant Dominant Class ---------------- Mutant | -10/Materials Mutant | -10/Mines Resources | -11 -10 -10 ----------- Run | Yrd Mat Min Matter Collected 761 | 167 501 93 Remotely . | . . . Salvage Created 471 | . 422 49 Parts 33 | . 33 . Haulers Intercepted 1 | . 1 . Recyclers Shooed . | . . . Parts Field Recycled . | . . . Retrieved Matter . | . . . Parts Self-Destructed . | . . . Prevented . | . . . Kills | -11 -10 -10 ------- Run | Yrd Mat Min Combat Hostiles Destroyed 18 | . 14 4 Guns 14 | . 10 4 AOE 4 | . 4 . Classes Destroyed 6 | . 5 1 Hauler 1 | . 1 . Operator 1 | . 1 . Watcher 2 | . 2 . Swarmer 9 | . 9 . Grunt 5 | . 5 . Assembled 4 | . . 4 Best Kill Streak 3 | . 3 2 Combat Bots Only 3 | . 3 2 Max Kills in Single Turn 3 | . 3 1 Gunslinging . | . . . Exploded 3 | . 3 . Melee . | . . . Uniques/NPCs Destroyed . | . . . Combat | -11 -10 -10 -------- Run | Yrd Mat Min Hostile Shots Fired 95 | . 47 48 Missed 27 | . 14 13 Damage Taken 888 | . 334 554 Core 251 | . 82 169 Absorbed by Shields . | . . . Redirected to Shielding 23 | . 11 12 Core Remaining (%) 100 | 100 . . Volleys Fired 69 | . 36 33 Largest 2 | . 2 2 Hottest 80 | . 80 40 Shots Fired 134 | . 68 66 Gun 130 | . 64 66 Cannon . | . . . Launcher 4 | . 4 . Special . | . . . Kinetic 69 | . 3 66 Thermal 14 | . 14 . Explosive 4 | . 4 . Electromagnetic 47 | . 47 . Robot Hit Streak 6 | . 6 6 Robot Miss Streak 4 | . 4 4 Penetration Max . | . . . Secondary Targets 2 | . 2 . Max Gunslinging Chain 1 | . 1 . Shots Hit Robots 69 | . 37 32 Core Hits 34 | . 23 11 Critical Kills . | . . . Critical Parts Destroyed . | . . . Critical Strikes . | . . . Melee Attacks . | . . . Impact . | . . . Slashing . | . . . Piercing . | . . . Sneak Attacks . | . . . Combat Hostiles . | . . . Follow-up Attacks . | . . . Damage Inflicted 1140 | . 795 345 Guns 793 | . 448 345 Cannons . | . . . Explosions 347 | . 347 . Melee . | . . . Ramming . | . . . Kinetic 363 | . 18 345 Thermal 110 | . 110 . Explosive 304 | . 304 . Electromagnetic 363 | . 363 . Impact . | . . . Slashing . | . . . Piercing . | . . . Highest Corruption . | . . . Average Corruption . | . . . Corruption Purged . | . . . Corruption Blocked . | . . . Overload Shots . | . . . Overflow Damage 25 | . 25 . Projectiles . | . . . Explosions 25 | . 25 . Melee . | . . . Knockbacks . | . . . Impact . | . . . Kinetic . | . . . Secondary . | . . . Self-Inflicted Damage 66 | . 66 . Shots 3 | . 3 . Rammed . | . . . Targets Rammed . | . . . Kicked . | . . . Crushed . | . . . Highest Temperature 128 | . 128 53 Average Temperature 33 | . 38 20 Received Heat Transfer 265 | . 36 229 Siege Activations . | . . . Robots Corrupted . | . . . Combat Hostiles . | . . . Parts Fried 1 | . 1 . Impact Corruptions . | . . . Robots Melted . | . . . Combat Hostiles . | . . . Parts Melted . | . . . Heat Transferred 150 | . 150 . Parts Sabotaged . | . . . Parts Stolen . | . . . Parts Stripped . | . . . Power Chain Reactions 1 | . 1 . Alert | -11 -10 -10 ------- Run | Yrd Mat Min Peak Influence 349 | . 349 109 Initial 94 | . . 94 Average 167 | . 203 84 Maximum Alert Level 1 | . 1 . Low Security (%) 51 | 100 32 100 Level 1 48 | . 67 . Level 2 . | . . . Level 3 . | . . . Level 4 . | . . . Level 5 . | . . . High Security . | . . . Max Security . | . . . Squads Dispatched 1 | . 1 . Investigation . | . . . Extermination . | . . . Reinforcement 1 | . 1 . Assault . | . . . Garrison . | . . . Intercept . | . . . Searches Triggered . | . . . Construction Impeded . | . . . Haulers Reinforced . | . . . Active Scanning Responses . | . . . Cargo Convoy Interrupts . | . . . Stealth | -11 -10 -10 --------- Run | Yrd Mat Min Distress Signals 3 | . 2 1 Communications Jammed . | . . . Distress Signals . | . . . Times Spotted 31 | . 20 11 Peak Tracking Total 4 | . 4 3 Tactical Retreats 2 | . . 2 Traps | -11 -10 -10 ------- Run | Yrd Mat Min Traps Triggered 2 | . 2 . Indirectly . | . . . Trap Hack Attempts . | . . . Triggered . | . . . Disarmed . | . . . Reprogrammed . | . . . Reused . | . . . Traps Extracted . | . . . Installed . | . . . Triggered . | . . . Machines | -11 -10 -10 ---------- Run | Yrd Mat Min Machines Disabled 1 | . 1 . Max in Single Turn 1 | . 1 . Machines Repaired . | . . . Machines Dismantled . | . . . Machines Sabotaged . | . . . Overloaded Fab Kills . | . . . Hacking | -11 -10 -10 --------- Run | Yrd Mat Min Machines Accessed 6 | . 6 . Terminals 6 | . 6 . Fabricators . | . . . Repair Stations . | . . . Recycling Units . | . . . Scanalyzers . | . . . Garrison Access . | . . . Total Hacks 23 | . 23 . Successful 7 | . 7 . Failed 16 | . 16 . Catastrophic . | . . . Database Lockouts . | . . . Manual 16 | . 16 . Terminals 23 | . 23 . Fabricators . | . . . Repair Stations . | . . . Recycling Units . | . . . Scanalyzers . | . . . Garrison Access . | . . . Terminal Hacks 1 | . 1 . Recall Reinforcements 1 | . 1 . Fabricator Hacks . | . . . Repair Station Hacks . | . . . Recycling Unit Hacks . | . . . Scanalyzer . | . . . Garrison Access Hacks . | . . . Unauthorized Hacks 6 | . 6 . Terminals 6 | . 6 . Botnet 5 | . 5 . Operators 1 | . 1 . Fabricators . | . . . Repair Stations . | . . . Recycling Units . | . . . Scanalyzers . | . . . Garrison Access . | . . . Data Cores Recovered . | . . . Used . | . . . Hacking Detections 6 | . 6 . Full Trace Events 1 | . 1 . Feedback Events . | . . . Feedback Blocked . | . . . Robot Schematics Acquired . | . . . Robots Built . | . . . Authchips . | . . . Time . | . . . Total Robot Build Rating . | . . . Part Schematics Acquired . | . . . Parts Built . | . . . Authchips . | . . . Time . | . . . Total Part Build Rating . | . . . Parts Repaired . | . . . Time . | . . . Parts Recycled . | . . . Recycled Matter . | . . . Retrieved Matter . | . . . Retrieved Components . | . . . Parts Scanalyzed . | . . . Part Schematics Acquired . | . . . Parts Damaged . | . . . Bothacking | -11 -10 -10 ------------ Run | Yrd Mat Min Used RIF Installer . | . . . Robots Hacked . | . . . Non-combat . | . . . Combat . | . . . Robot Hacks Applied . | . . . Relay Couplers Released . | . . . Fabnet Peak Effective % . | . . . Robots Rewired . | . . . Allies Hacked . | . . . Hacks Repelled . | . . . Allies | -11 -10 -10 -------- Run | Yrd Mat Min Total Allies . | . . . Largest Group . | . . . Highest-Rated Group . | . . . Highest-Rated Ally . | . . . Total Orders . | . . . Ally Attacks . | . . . Total Damage . | . . . Kills . | . . . Allies Corrupted . | . . . Allies Melted . | . . . Intel | -11 -10 -10 ------- Run | Yrd Mat Min Robot Analysis Total . | . . . Derelict Logs Recovered . | . . . Drone Launches . | . . . Drone Recoveries . | . . . Exploration | -11 -10 -10 ------------- Run | Yrd Mat Min Turns Passed 1083 | 30 776 277 Spaces Moved 918 | 27 679 212 Core 93 | 10 . 83 Treads . | . . . Legs . | . . . Wheels 825 | 17 679 129 Hover . | . . . Flight . | . . . Fastest Speed 50 | 50 80 50 Average Speed 85 | 68 86 81 Slowest Speed 115 | 80 100 115 Overloaded Moves . | . . . Propulsion Burnouts . | . . . Robots Hopped . | . . . Cave-ins Triggered . | . . . Exploration Rate (%) 46 | 3 94 41 Regions Visited 2 Branch Regions 1 Pre-discovered Areas . | . . . Known Exits Taken . | . . . Unknown Exits Taken 2 | 1 1 . Scrap Searched 2 | . . 2 Spaces Dug . | . . . Terrain Destroyed 50 | . 50 . Melee . | . . . Projectile . | . . . AOE 50 | . 50 . Terrain Rammed . | . . . Walls Destroyed . | . . . Machines Disabled . | . . . Actions | -11 -10 -10 --------- Run | Yrd Mat Min Total 1096 | 37 796 263 Wait 36 | . 36 . Move 916 | 26 678 212 Hop . | . . . Pick Up 28 | 5 18 5 Fast Attach 9 | 2 7 . Attach 9 | 4 3 2 Detach 2 | . 2 . Swap 7 | . 7 . Drop 20 | . 9 11 Fire 69 | . 36 33 Melee . | . . . Ram . | . . . Kick . | . . . Crush . | . . . Escape Stasis . | . . . Rewire . | . . . Trap . | . . . Miscellaneous . | . . . Route ------- -11/Scrapyard -10/Materials (discovered 5 exits: [*Mat x3] / [*Min x2]) -10/Mines History --------- Turn | Location | Event 4 | -11/Scrapyard | Discovered new exit (range 16) 31 | -11/Scrapyard | Entered Materials 139 | -10/Materials | Discovered new exit (range 16) 311 | -10/Materials | Build established: Mutant 396 | -10/Materials | Discovered new exit (range 7) 487 | -10/Materials | Discovered new exit (range 13) 531 | -10/Materials | Discovered new exit (range 7) 606 | -10/Materials | Discovered new exit (range 8) 807 | -10/Materials | Entered Mines 808 | -10/Mines | Assembled infested the area 847 | -10/Mines | Joined a pair of Derelicts in attacking an 0b10 outpost 1005 | -10/Mines | Core integrity fell below 50% 1017 | -10/Mines | Lost 3 parts (1p2n) 1044 | -10/Mines | Core integrity fell below 20% 1068 | -10/Mines | Lost 3 parts (1n2w) 1084 | -10/Mines | Destroyed by as-68840 with Assembled Rifle Last Messages --------------- 01014_ as-76823 destroyed. 01016_ Acquired 13 matter. 01018_ Acquired 11 matter. 01028_ T-07 Excavator destroyed. 01035_ Assault Rifle destroyed. 01035_ Lgt. Assault Rifle destroyed. 01037_ Com. Wheel destroyed. 01038_ Dropped Core Shielding. 01038_ Dropped Tractor Beam. 01039_ Dropped Propulsion Shielding. 01039_ Dropped ECM Suite. 01040_ Dropped Imp. Targeting Computer. 01040_ Dropped Structural Scanner. 01041_ Dropped Hcp. Matter Pod. 01041_ Dropped Heat Sink. 01042_ Dropped Imp. Ion Engine. 01042_ Dropped Imp. Heat Sink. 01043_ Dropped Lrg. Storage Unit. 01046_ Acquired 13 matter. 01055_ Acquired 25 matter. Map ----- +----------------------------------------------------+ | ?????????????????? ???????????????????? | | ????????????????? ??????????????????? | | ???????????????? %???#??????????????? | | ???????????????? ??# ??????????????? | | ???????????????? ?? ??????????????? | | ????????????????? ?? #??????????????? | | ????????????????? ?? ??????????????? | | ?????????????????? ?? #??????????????? | | ?????????????????? ## #??????????????? | | ###???????????????? # ???????????????? | | #???????????????? ???????????????? | | #????????????????# #???????????????? | | #???#######??????# #???????????????? | | #??## ##?????# ##??????????????? | | #??# ##????# ##?????????????? | | #??# ##?### #?????????????? | | #??# ### #????????#????? | | ##??# ## ## a #??????? #????? | | ##??# ## ### ##?????? ##???? | | #### ## #?# a ##????? #???? | | ## ## #?## ## ####?# #???? | | """ #??###### ## #???? | | """ #######???????## ##??? | | """ #??????????????##a #??? | | #??????????????## #??? | | ##??????????????# @ #??? | | ###??????????????# ## ## #??? | | ###????????????? ##?###?? ##??? | | ???????????????# ##????????###???? | | ???????????????## ##????????????????? | | ????????????????####??????????????????? | | ??????????????????????????????????????? | | ??????????????????????????????????????? | | ??????????????????????????????????????? | | ??????????????????????????????????????? | | ??????????????????????????????????????? | | ??????????????????????????????????????? | | | | | | | | | | | | | | | | | | | | | | | | | | | +----------------------------------------------------+ Best States ------------- Heat Dissipation 25 Energy Generation 12 Energy Capacity 265 Matter Stores 300 Matter Capacity 300 Sight Range 16 Terrain Scan Density 10 Core Shielding 20 Evasion (%) 50 Item Schematics ----------------- None Robot Schematics ------------------ None Fabricated ------------ Nothing Alien Tech Used ----------------- None Achievements -------------- None Challenges ------------ None Game ------ Seed HoverCarbideEngine Manual? 0 Play Time 00:16:12 Cumulative 74.1 hours Start 2024.04.28 @ 16:48:21 End 2024.04.28 @ 17:00:57 Sessions 1 Manual Loads 0 Difficulty Rogue Special Mode None Game No. 31 Rogue 1 Adventurer 30 Explorer 0 Win Type - Total 3 Types 2/1/0/0/0/0/0/0/0 Lore% 48 Gallery% 64 Achievement% 58 Wizard Run 0 Options --------- Layout 0 ASCII 0 Keyboard 0 Movement Mouse Keybinds 0 Fullscreen 1 Font 18/SmallcapsGlow Map View 76x50 Zoom Use 0% Tactical HUD 1 Map Filters NONE Filters NONE Steam 1 RUN: 18b91146-40c9-4e51-b6fe-f202d6cf6006